[Event "*** Titled Tuesday Blitz"]
[Site "Chess.com"]
[Date "2019.06.04"]
[Round "8"]
[White "alturas_pacificas"]
[Black "Bad4life"]
[Result "0-1"]
[WhiteElo "2250"]
[BlackElo "2440"]
[TimeControl "180+2"]
[EndTime "14:51:42 PDT"]
[Termination "Bad4life won by resignation"]

1. d4 {[%clk 0:03:01.9]} 1... d6 {[%clk 0:02:59.7]} 2. Bf4 {[%clk 0:03:02.9]}
2... g6 {[%clk 0:02:58]} 3. e3 {[%clk 0:03:04.3]} 3... Bg7 {[%clk 0:02:58.9]} 4.
Nf3 {[%clk 0:03:05.8]} 4... Nd7 {[%clk 0:02:57.8]} 5. Bc4 {[%clk 0:03:07.3]}
5... c6 {[%clk 0:02:58.6]} 6. O-O {[%clk 0:03:06.7]} 6... Nh6 {[%clk 0:02:56.3]}
7. e4 {[%clk 0:02:57.6]} 7... d5 {[%clk 0:02:53]} 8. Bd3 {[%clk 0:02:58.2]} 8...
dxe4 {[%clk 0:02:53.2]} 9. Bxe4 {[%clk 0:03:00.1]} 9... Nf6 {[%clk 0:02:53.9]}
10. Bd3 {[%clk 0:02:57.3]} 10... O-O {[%clk 0:02:53.4]} 11. c3 {[%clk
0:02:53.8]} 11... Bf5 {[%clk 0:02:50.9]} 12. Bxf5 {[%clk 0:02:49.3]} 12... Nxf5
{[%clk 0:02:49.8]} 13. Nbd2 {[%clk 0:02:50.7]} 13... Nd5 {[%clk 0:02:47.7]} 14.
Be5 {[%clk 0:02:51.2]} 14... f6 {[%clk 0:02:48.1]} 15. Bg3 {[%clk 0:02:51.8]}
15... Qd7 {[%clk 0:02:44.3]} 16. Re1 {[%clk 0:02:52.8]} 16... Rad8 {[%clk
0:02:44.8]} 17. Ne4 {[%clk 0:02:49.6]} 17... b6 {[%clk 0:02:45.9]} 18. a4 {[%clk
0:02:42.9]} 18... a5 {[%clk 0:02:44.2]} 19. Qb3 {[%clk 0:02:35.4]} 19... Kh8
{[%clk 0:02:41.8]} 20. Nfd2 {[%clk 0:02:29.4]} 20... h5 {[%clk 0:02:35.9]} 21.
f3 {[%clk 0:02:16.9]} 21... Nxg3 {[%clk 0:02:26.3]} 22. hxg3 {[%clk 0:02:14.9]}
22... Bh6 {[%clk 0:02:23]} 23. Nc4 {[%clk 0:02:15.8]} 23... Rb8 {[%clk
0:02:24.3]} 24. Kf2 {[%clk 0:01:48.2]} 24... Kg7 {[%clk 0:02:22.3]} 25. Qa3
{[%clk 0:01:13.1]} 25... b5 {[%clk 0:02:12.4]} 26. Nc5 {[%clk 0:01:07]} 26...
Qa7 {[%clk 0:01:56.7]} 27. Ne6+ {[%clk 0:01:00.8]} 27... Kf7 {[%clk 0:01:58.1]}
28. Nxf8 {[%clk 0:00:53.7]} 28... Bxf8 {[%clk 0:01:58.2]} 29. axb5 {[%clk
0:00:48.3]} 29... cxb5 {[%clk 0:01:53.4]} 30. Nxa5 {[%clk 0:00:45.8]} 30... e5
{[%clk 0:01:49.6]} 31. Qb3 {[%clk 0:00:37.4]} 31... Qd7 {[%clk 0:01:50.5]} 32.
dxe5 {[%clk 0:00:17.7]} 32... Bc5+ {[%clk 0:01:47.6]} 33. Kf1 {[%clk 0:00:19]}
33... Kg7 {[%clk 0:01:40.3]} 34. Rad1 {[%clk 0:00:17.9]} 34... Rd8 {[%clk
0:01:23.9]} 35. exf6+ {[%clk 0:00:18.6]} 35... Kh6 {[%clk 0:01:20.5]} 36. Rxd5
{[%clk 0:00:12.8]} 36... Qxd5 {[%clk 0:01:20.9]} 37. Qxd5 {[%clk 0:00:13.9]}
37... Rxd5 {[%clk 0:01:22.8]} 38. Nb3 {[%clk 0:00:10.6]} 38... Bd6 {[%clk
0:01:18.1]} 39. Nd4 {[%clk 0:00:11.1]} 39... Bxg3 {[%clk 0:01:19.2]} 40. Re8
{[%clk 0:00:08.4]} 40... Rd7 {[%clk 0:00:53.6]} 41. Ne6 {[%clk 0:00:07]} 41...
g5 {[%clk 0:00:51.4]} 42. Re7 {[%clk 0:00:06.7]} 42... Rd2 {[%clk 0:00:46]} 43.
Nf8 {[%clk 0:00:05.1]} 43... g4 {[%clk 0:00:40.5]} 44. Rh7+ {[%clk 0:00:04.3]}
44... Kg5 {[%clk 0:00:41.6]} 45. fxg4 {[%clk 0:00:05.3]} 45... Rf2+ {[%clk
0:00:41.7]} 46. Kg1 {[%clk 0:00:05.8]} 46... Rd2 {[%clk 0:00:41.3]} 47. Rxh5+
{[%clk 0:00:05.6]} 47... Kxg4 {[%clk 0:00:42.6]} 48. Kf1 {[%clk 0:00:06]} 48...
Rf2+ {[%clk 0:00:38.1]} 49. Ke1 {[%clk 0:00:06.5]} 49... Kxh5 {[%clk 0:00:36.7]}
50. Kd1 {[%clk 0:00:06.7]} 50... Rxf6 {[%clk 0:00:35.9]} 51. Nd7 {[%clk
0:00:08]} 51... Rd6+ {[%clk 0:00:37.1]} 52. Kc2 {[%clk 0:00:07.1]} 52... Rxd7
{[%clk 0:00:39]} 53. Kb3 {[%clk 0:00:08]} 53... Bd6 {[%clk 0:00:37.5]} 54. c4
{[%clk 0:00:08.9]} 54... b4 {[%clk 0:00:39]} 55. Ka4 {[%clk 0:00:09.3]} 55...
Rb7 {[%clk 0:00:40]} 56. b3 {[%clk 0:00:09.8]} 56... Bc5 {[%clk 0:00:39.7]} 57.
Ka5 {[%clk 0:00:10.7]} 57... Rb8 {[%clk 0:00:38.4]} 58. Ka6 {[%clk 0:00:11.3]}
58... Kg5 {[%clk 0:00:38.7]} 59. Ka5 {[%clk 0:00:11.7]} 59... Kf5 {[%clk
0:00:40.2]} 0-1

[Event "*** Titled Tuesday Blitz"]
[Site "Chess.com"]
[Date "2019.06.04"]
[Round "8"]
[White "MITerryble"]
[Black "igorkovalenko"]
[Result "1/2-1/2"]
[WhiteElo "2794"]
[BlackElo "2881"]
[TimeControl "180+2"]
[EndTime "14:51:49 PDT"]
[Termination "Game drawn by repetition"]

1. d4 {[%clk 0:03:01.9]} 1... d5 {[%clk 0:03:00.2]} 2. Nf3 {[%clk 0:03:02.7]}
2... Nf6 {[%clk 0:02:59.7]} 3. c4 {[%clk 0:03:03.8]} 3... e6 {[%clk 0:03:00.7]}
4. e3 {[%clk 0:03:04.3]} 4... a6 {[%clk 0:03:00.7]} 5. b3 {[%clk 0:03:04.1]}
5... b6 {[%clk 0:03:01.7]} 6. Bb2 {[%clk 0:03:05.1]} 6... Bb7 {[%clk 0:03:03.3]}
7. Bd3 {[%clk 0:03:06.4]} 7... Nbd7 {[%clk 0:03:03.8]} 8. O-O {[%clk 0:03:07.6]}
8... Bd6 {[%clk 0:03:04.3]} 9. Ne5 {[%clk 0:03:09]} 9... O-O {[%clk 0:03:04.7]}
10. Nd2 {[%clk 0:03:09]} 10... Qe7 {[%clk 0:02:53.2]} 11. Qc2 {[%clk 0:02:59]}
11... Rfd8 {[%clk 0:02:49]} 12. cxd5 {[%clk 0:02:58.9]} 12... exd5 {[%clk
0:02:48.8]} 13. Nc6 {[%clk 0:02:54.9]} 13... Bxc6 {[%clk 0:02:49.8]} 14. Qxc6
{[%clk 0:02:56.8]} 14... Qe6 {[%clk 0:02:44.6]} 15. Qc2 {[%clk 0:02:43.1]} 15...
Re8 {[%clk 0:02:45.2]} 16. Bf5 {[%clk 0:02:38.5]} 16... Qe7 {[%clk 0:02:46]} 17.
Qc6 {[%clk 0:02:33.3]} 17... Nf8 {[%clk 0:02:43.6]} 18. Rfc1 {[%clk 0:02:17.7]}
18... Ng6 {[%clk 0:02:40.2]} 19. Nf3 {[%clk 0:02:17.7]} 19... a5 {[%clk
0:02:38.4]} 20. a4 {[%clk 0:02:12.4]} 20... Rad8 {[%clk 0:02:36.6]} 21. Rc2
{[%clk 0:02:12]} 21... Ne4 {[%clk 0:02:34.4]} 22. g3 {[%clk 0:01:16.1]} 22...
Qf6 {[%clk 0:01:55.9]} 23. Bg4 {[%clk 0:01:07.2]} 23... Ne7 {[%clk 0:01:50.2]}
24. Qb5 {[%clk 0:00:56.2]} 24... h5 {[%clk 0:01:50.8]} 25. Bxh5 {[%clk
0:00:44.8]} 25... Qf5 {[%clk 0:01:51.3]} 26. Bxf7+ {[%clk 0:00:39.8]} 26... Qxf7
{[%clk 0:01:48.3]} 27. Ne1 {[%clk 0:00:41.1]} 27... Rf8 {[%clk 0:01:42.5]} 28.
Qe2 {[%clk 0:00:41.7]} 28... Nf5 {[%clk 0:01:37.1]} 29. Nd3 {[%clk 0:00:39.8]}
29... Nh6 {[%clk 0:01:34.6]} 30. f4 {[%clk 0:00:31.7]} 30... Qe6 {[%clk
0:01:28.3]} 31. Ne5 {[%clk 0:00:32.3]} 31... Bxe5 {[%clk 0:01:27.9]} 32. dxe5
{[%clk 0:00:33.6]} 32... c5 {[%clk 0:01:28.6]} 33. Rd1 {[%clk 0:00:25.2]} 33...
Rd7 {[%clk 0:01:29]} 34. Qg2 {[%clk 0:00:24.1]} 34... Rfd8 {[%clk 0:01:17.2]}
35. Re2 {[%clk 0:00:23.7]} 35... Qg4 {[%clk 0:01:03.5]} 36. Rde1 {[%clk
0:00:21.3]} 36... Nf5 {[%clk 0:01:03.5]} 37. Rc2 {[%clk 0:00:16]} 37... Re8
{[%clk 0:01:04.1]} 38. Qe2 {[%clk 0:00:17.1]} 38... Qh3 {[%clk 0:00:53.4]} 39.
Qg2 {[%clk 0:00:16.5]} 39... Qh7 {[%clk 0:00:50.3]} 40. g4 {[%clk 0:00:15.9]}
40... Nh4 {[%clk 0:00:51.6]} 41. Qh3 {[%clk 0:00:16.8]} 41... Ng5 {[%clk
0:00:28.7]} 42. fxg5 {[%clk 0:00:17.8]} 42... Qxc2 {[%clk 0:00:29.8]} 43. Qxh4
{[%clk 0:00:19.4]} 43... Qxb2 {[%clk 0:00:31.4]} 44. g6 {[%clk 0:00:20.5]} 44...
Qxe5 {[%clk 0:00:32.5]} 45. Qh7+ {[%clk 0:00:19.5]} 45... Kf8 {[%clk 0:00:33.6]}
46. Qh4 {[%clk 0:00:16.3]} 46... Kg8 {[%clk 0:00:28.9]} 47. Qh7+ {[%clk
0:00:15.4]} 47... Kf8 {[%clk 0:00:30.3]} 48. Qh4 {[%clk 0:00:17.3]} 48... Re6
{[%clk 0:00:12.1]} 49. Rf1+ {[%clk 0:00:16.1]} 49... Rf6 {[%clk 0:00:13.5]} 50.
Qh8+ {[%clk 0:00:17.1]} 50... Ke7 {[%clk 0:00:15.1]} 51. Qxg7+ {[%clk
0:00:18.2]} 51... Ke6 {[%clk 0:00:16.7]} 52. Qg8+ {[%clk 0:00:19.6]} 52... Kd6
{[%clk 0:00:16.3]} 53. Qb8+ {[%clk 0:00:20.2]} 53... Ke6 {[%clk 0:00:14.8]} 54.
Qe8+ {[%clk 0:00:17.7]} 54... Kd6 {[%clk 0:00:11.3]} 55. Qb8+ {[%clk 0:00:18.5]}
55... Ke6 {[%clk 0:00:09.8]} 56. Qe8+ {[%clk 0:00:15.2]} 56... Kd6 {[%clk
0:00:10.9]} 57. Qb8+ {[%clk 0:00:16]} 1/2-1/2

[Event "*** Titled Tuesday Blitz"]
[Site "Chess.com"]
[Date "2019.06.04"]
[Round "8"]
[White "ZenBull"]
[Black "HanSchut"]
[Result "1-0"]
[WhiteElo "2100"]
[BlackElo "2181"]
[TimeControl "180+2"]
[EndTime "14:51:51 PDT"]
[Termination "ZenBull won by checkmate"]

1. Nf3 {[%clk 0:03:01.9]} 1... Nf6 {[%clk 0:03:00]} 2. d4 {[%clk 0:03:02.4]}
2... d5 {[%clk 0:02:58]} 3. c4 {[%clk 0:02:59.1]} 3... c6 {[%clk 0:02:55.8]} 4.
g3 {[%clk 0:02:58.2]} 4... g6 {[%clk 0:02:49.6]} 5. Nc3 {[%clk 0:02:57.4]} 5...
Bg7 {[%clk 0:02:44.1]} 6. cxd5 {[%clk 0:02:56.6]} 6... Nxd5 {[%clk 0:02:40.5]}
7. Bg2 {[%clk 0:02:45.7]} 7... O-O {[%clk 0:02:40]} 8. O-O {[%clk 0:02:44.4]}
8... h6 {[%clk 0:02:34.6]} 9. e3 {[%clk 0:02:40.2]} 9... Nb6 {[%clk 0:02:29.3]}
10. Qe2 {[%clk 0:02:33.8]} 10... Be6 {[%clk 0:02:28.7]} 11. Rd1 {[%clk
0:02:33.8]} 11... N8d7 {[%clk 0:02:20.6]} 12. b3 {[%clk 0:02:23]} 12... Nf6
{[%clk 0:02:09.4]} 13. Bb2 {[%clk 0:02:23]} 13... Rc8 {[%clk 0:02:05]} 14. Rac1
{[%clk 0:02:23.2]} 14... Nbd5 {[%clk 0:02:05]} 15. Nxd5 {[%clk 0:02:15]} 15...
Bxd5 {[%clk 0:02:01.1]} 16. Bh3 {[%clk 0:02:10.6]} 16... Rc7 {[%clk 0:01:38.1]}
17. Nd2 {[%clk 0:02:03.9]} 17... Ne4 {[%clk 0:00:55]} 18. Nxe4 {[%clk
0:01:49.9]} 18... Bxe4 {[%clk 0:00:56.9]} 19. f3 {[%clk 0:01:44.6]} 19... Bf5
{[%clk 0:00:57.9]} 20. Bxf5 {[%clk 0:01:43.1]} 20... gxf5 {[%clk 0:00:59.8]} 21.
Ba3 {[%clk 0:01:31.4]} 21... Re8 {[%clk 0:00:56.3]} 22. Qc2 {[%clk 0:01:12.2]}
22... Qd7 {[%clk 0:00:55.4]} 23. Kg2 {[%clk 0:01:03.5]} 23... Rec8 {[%clk
0:00:52.4]} 24. Qe2 {[%clk 0:00:59.2]} 24... Qe6 {[%clk 0:00:50.6]} 25. Rc4
{[%clk 0:00:50.4]} 25... Qg6 {[%clk 0:00:49.8]} 26. Bc1 {[%clk 0:00:46.2]} 26...
Rd7 {[%clk 0:00:46.8]} 27. Kf2 {[%clk 0:00:45.5]} 27... Rcd8 {[%clk 0:00:47.1]}
28. Qc2 {[%clk 0:00:44.9]} 28... e5 {[%clk 0:00:44.8]} 29. Bb2 {[%clk
0:00:42.3]} 29... exd4 {[%clk 0:00:45.8]} 30. Bxd4 {[%clk 0:00:41.1]} 30... b6
{[%clk 0:00:41.6]} 31. Rxc6 {[%clk 0:00:34.4]} 31... Qh5 {[%clk 0:00:42.7]} 32.
Kg2 {[%clk 0:00:23.5]} 32... Bxd4 {[%clk 0:00:43.6]} 33. exd4 {[%clk 0:00:22.6]}
33... f4 {[%clk 0:00:42.4]} 34. g4 {[%clk 0:00:21.4]} 34... Qg5 {[%clk
0:00:34.9]} 35. Rc8 {[%clk 0:00:22.4]} 35... h5 {[%clk 0:00:31.9]} 36. Rxd8+
{[%clk 0:00:23.6]} 36... Rxd8 {[%clk 0:00:33.3]} 37. h3 {[%clk 0:00:24.7]} 37...
hxg4 {[%clk 0:00:30.9]} 38. hxg4 {[%clk 0:00:26.6]} 38... Kg7 {[%clk 0:00:31.5]}
39. Qf5 {[%clk 0:00:27]} 39... Qxf5 {[%clk 0:00:32.1]} 40. gxf5 {[%clk
0:00:28.6]} 40... f6 {[%clk 0:00:34]} 41. Kh3 {[%clk 0:00:28.1]} 41... Kf7
{[%clk 0:00:23.8]} 42. Kg4 {[%clk 0:00:29.1]} 42... Rd5 {[%clk 0:00:22.9]} 43.
Kxf4 {[%clk 0:00:30.3]} 43... Ra5 {[%clk 0:00:24.8]} 44. a4 {[%clk 0:00:30.6]}
44... Rd5 {[%clk 0:00:25.2]} 45. Ke4 {[%clk 0:00:31]} 45... Rd8 {[%clk
0:00:24.2]} 46. Rh1 {[%clk 0:00:31.2]} 46... Kg7 {[%clk 0:00:24.6]} 47. Rg1+
{[%clk 0:00:32.2]} 47... Kf7 {[%clk 0:00:24.9]} 48. Rc1 {[%clk 0:00:33.1]} 48...
Rd7 {[%clk 0:00:25.3]} 49. Rc6 {[%clk 0:00:34.4]} 49... Re7+ {[%clk 0:00:22.8]}
50. Re6 {[%clk 0:00:34.5]} 50... Rd7 {[%clk 0:00:23.7]} 51. d5 {[%clk
0:00:35.6]} 51... Rc7 {[%clk 0:00:21.5]} 52. Rc6 {[%clk 0:00:36.3]} 52... Rd7
{[%clk 0:00:22.6]} 53. Kd4 {[%clk 0:00:35.9]} 53... Ke7 {[%clk 0:00:22.3]} 54.
Re6+ {[%clk 0:00:37]} 54... Kf7 {[%clk 0:00:22.6]} 55. d6 {[%clk 0:00:38.2]}
55... Rd8 {[%clk 0:00:18.6]} 56. Re7+ {[%clk 0:00:38.4]} 56... Kf8 {[%clk
0:00:19.4]} 57. Kd5 {[%clk 0:00:39.6]} 57... Rc8 {[%clk 0:00:15.4]} 58. Ke6
{[%clk 0:00:37.9]} 58... Rc3 {[%clk 0:00:14.6]} 59. Rxa7 {[%clk 0:00:35.6]}
59... Rxb3 {[%clk 0:00:13.6]} 60. d7 {[%clk 0:00:30.2]} 60... Re3+ {[%clk
0:00:10.7]} 61. Kxf6 {[%clk 0:00:30.5]} 61... Rd3 {[%clk 0:00:07.6]} 62. Ra8#
{[%clk 0:00:30.7]} 1-0

[Event "*** Titled Tuesday Blitz"]
[Site "Chess.com"]
[Date "2019.06.04"]
[Round "8"]
[White "Durarbayli"]
[Black "fastestmindalive"]
[Result "1-0"]
[WhiteElo "2771"]
[BlackElo "2792"]
[TimeControl "180+2"]
[EndTime "14:51:57 PDT"]
[Termination "Durarbayli won on time"]

1. e4 {[%clk 0:03:01.9]} 1... c5 {[%clk 0:02:59.8]} 2. Nc3 {[%clk 0:03:00.5]}
2... Nc6 {[%clk 0:02:59.8]} 3. Nf3 {[%clk 0:03:00.3]} 3... g6 {[%clk 0:02:59]}
4. h4 {[%clk 0:02:59.1]} 4... h5 {[%clk 0:02:58.9]} 5. d4 {[%clk 0:02:58.6]}
5... cxd4 {[%clk 0:02:59.8]} 6. Nxd4 {[%clk 0:03:00.5]} 6... Bg7 {[%clk
0:03:01.5]} 7. Be3 {[%clk 0:03:00.9]} 7... Nf6 {[%clk 0:03:02]} 8. Be2 {[%clk
0:02:54.7]} 8... O-O {[%clk 0:02:54.7]} 9. Nb3 {[%clk 0:02:54.1]} 9... d6 {[%clk
0:02:47.6]} 10. f3 {[%clk 0:02:53.8]} 10... Ne5 {[%clk 0:02:46.3]} 11. Qd2
{[%clk 0:02:49.2]} 11... a5 {[%clk 0:02:37.3]} 12. a4 {[%clk 0:02:48.7]} 12...
Be6 {[%clk 0:02:37.9]} 13. Nd4 {[%clk 0:02:48.5]} 13... Bd7 {[%clk 0:02:22.7]}
14. g4 {[%clk 0:02:42.7]} 14... Rc8 {[%clk 0:01:57.1]} 15. g5 {[%clk 0:02:32.7]}
15... Ne8 {[%clk 0:01:55.3]} 16. b3 {[%clk 0:02:32.4]} 16... Nc7 {[%clk
0:01:55.6]} 17. Rg1 {[%clk 0:02:26.7]} 17... Na6 {[%clk 0:01:37.7]} 18. Nd5
{[%clk 0:02:21.1]} 18... Nb4 {[%clk 0:01:12.3]} 19. Nxb4 {[%clk 0:02:20.4]}
19... axb4 {[%clk 0:01:14.2]} 20. Qxb4 {[%clk 0:01:37.4]} 20... Nc6 {[%clk
0:01:13]} 21. Nxc6 {[%clk 0:01:31.1]} 21... Rxc6 {[%clk 0:01:02.9]} 22. O-O-O
{[%clk 0:01:31]} 22... Qc7 {[%clk 0:00:45.5]} 23. c4 {[%clk 0:01:31.7]} 23...
Rc8 {[%clk 0:00:34.7]} 24. Rd2 {[%clk 0:01:13.3]} 24... Ra8 {[%clk 0:00:35.1]}
25. Kb1 {[%clk 0:00:58.1]} 25... Rca6 {[%clk 0:00:34.3]} 26. Ra2 {[%clk
0:00:51.5]} 26... Be6 {[%clk 0:00:24.8]} 27. Rd1 {[%clk 0:00:49.2]} 27... Rc6
{[%clk 0:00:20.2]} 28. Bd4 {[%clk 0:00:47.1]} 28... Bxd4 {[%clk 0:00:19.8]} 29.
Rxd4 {[%clk 0:00:49]} 29... Rc5 {[%clk 0:00:21.2]} 30. f4 {[%clk 0:00:39.8]}
30... b6 {[%clk 0:00:13.8]} 31. Rc2 {[%clk 0:00:34.6]} 31... Ra7 {[%clk
0:00:11.3]} 32. Bd3 {[%clk 0:00:35.3]} 32... Bg4 {[%clk 0:00:12]} 33. Rd5 {[%clk
0:00:35.5]} 33... Qc6 {[%clk 0:00:04.9]} 34. Rxc5 {[%clk 0:00:18.3]} 34... dxc5
{[%clk 0:00:06.8]} 35. Qc3 {[%clk 0:00:18.8]} 35... Rd7 {[%clk 0:00:08]} 36. Rd2
{[%clk 0:00:19.7]} 36... Rd4 {[%clk 0:00:09.3]} 37. Bc2 {[%clk 0:00:19.8]} 37...
Qd6 {[%clk 0:00:09.5]} 38. e5 {[%clk 0:00:18.6]} 38... Qd7 {[%clk 0:00:06.1]}
39. Rxd4 {[%clk 0:00:19.1]} 39... cxd4 {[%clk 0:00:08]} 40. Qd2 {[%clk
0:00:20.1]} 40... Kg7 {[%clk 0:00:06.8]} 41. Kb2 {[%clk 0:00:20.9]} 41... e6
{[%clk 0:00:06.6]} 42. b4 {[%clk 0:00:21.5]} 42... Qd8 {[%clk 0:00:05.4]} 43.
Be4 {[%clk 0:00:19.1]} 43... Qd7 {[%clk 0:00:05.3]} 44. Kb3 {[%clk 0:00:20.3]}
44... Qd8 {[%clk 0:00:05.7]} 45. Qd3 {[%clk 0:00:15.9]} 45... Qd7 {[%clk
0:00:05.2]} 46. c5 {[%clk 0:00:13]} 46... bxc5 {[%clk 0:00:05.5]} 47. bxc5
{[%clk 0:00:14.9]} 47... Qd8 {[%clk 0:00:05]} 48. Kb4 {[%clk 0:00:15.1]} 48...
Qb8+ {[%clk 0:00:05.6]} 49. Qb5 {[%clk 0:00:16]} 49... Qd8 {[%clk 0:00:05.3]}
50. c6 {[%clk 0:00:17]} 50... Bf5 {[%clk 0:00:05.9]} 51. Bxf5 {[%clk 0:00:15.8]}
51... gxf5 {[%clk 0:00:07.2]} 52. Qc4 {[%clk 0:00:11.6]} 52... Qb6+ {[%clk
0:00:05.7]} 53. Qb5 {[%clk 0:00:12.6]} 53... Qd8 {[%clk 0:00:06.8]} 54. Qc5
{[%clk 0:00:14]} 1-0

[Event "*** Titled Tuesday Blitz"]
[Site "Chess.com"]
[Date "2019.06.04"]
[Round "8"]
[White "KhazarBabazada"]
[Black "Mischuk_D"]
[Result "1-0"]
[WhiteElo "2616"]
[BlackElo "2705"]
[TimeControl "180+2"]
[EndTime "14:52:03 PDT"]
[Termination "KhazarBabazada won by resignation"]

1. e4 {[%clk 0:03:01.9]} 1... e5 {[%clk 0:02:58.5]} 2. Nf3 {[%clk 0:03:02.8]}
2... Nc6 {[%clk 0:02:59.4]} 3. Bb5 {[%clk 0:03:03.7]} 3... Nf6 {[%clk
0:02:59.8]} 4. O-O {[%clk 0:03:03.8]} 4... Nxe4 {[%clk 0:03:01]} 5. Re1 {[%clk
0:03:04.4]} 5... Nd6 {[%clk 0:03:01.9]} 6. Nxe5 {[%clk 0:03:05.1]} 6... Be7
{[%clk 0:03:03.5]} 7. Bf1 {[%clk 0:03:06.1]} 7... Nxe5 {[%clk 0:03:04.4]} 8.
Rxe5 {[%clk 0:03:07.5]} 8... O-O {[%clk 0:03:06]} 9. d4 {[%clk 0:03:08.8]} 9...
Ne8 {[%clk 0:03:06.9]} 10. Bd3 {[%clk 0:03:01.1]} 10... d5 {[%clk 0:03:07]} 11.
Re1 {[%clk 0:02:39.4]} 11... Bd6 {[%clk 0:02:55.2]} 12. Nd2 {[%clk 0:02:33.9]}
12... g6 {[%clk 0:02:55.8]} 13. Nf3 {[%clk 0:02:33.2]} 13... Ng7 {[%clk
0:02:57]} 14. Bh6 {[%clk 0:02:32]} 14... Re8 {[%clk 0:02:56.6]} 15. Qd2 {[%clk
0:02:29.5]} 15... Nf5 {[%clk 0:02:48]} 16. Bf4 {[%clk 0:02:07.5]} 16... Be6
{[%clk 0:02:39.5]} 17. c3 {[%clk 0:02:03.1]} 17... c6 {[%clk 0:02:34.7]} 18. Ng5
{[%clk 0:02:02.4]} 18... Bf8 {[%clk 0:02:25.8]} 19. Nxe6 {[%clk 0:02:02.1]}
19... fxe6 {[%clk 0:02:27]} 20. Re2 {[%clk 0:01:57.2]} 20... Qf6 {[%clk
0:02:27.3]} 21. Rae1 {[%clk 0:01:57]} 21... Qf7 {[%clk 0:02:22.2]} 22. Be5
{[%clk 0:01:52.6]} 22... Bg7 {[%clk 0:02:22]} 23. Qf4 {[%clk 0:01:50.3]} 23...
Bxe5 {[%clk 0:02:21.4]} 24. Rxe5 {[%clk 0:01:52.2]} 24... Ng7 {[%clk 0:02:22.3]}
25. Qg3 {[%clk 0:01:47.4]} 25... Rf8 {[%clk 0:02:22.1]} 26. f3 {[%clk
0:01:43.3]} 26... Qf4 {[%clk 0:02:19.1]} 27. Qxf4 {[%clk 0:01:33.4]} 27... Rxf4
{[%clk 0:02:19.5]} 28. Kf2 {[%clk 0:01:33.4]} 28... Rf7 {[%clk 0:02:19.8]} 29.
Bf1 {[%clk 0:01:29]} 29... Kf8 {[%clk 0:02:20.7]} 30. g3 {[%clk 0:01:28.8]}
30... Ke7 {[%clk 0:02:21.8]} 31. Bh3 {[%clk 0:01:28.1]} 31... Rf6 {[%clk
0:02:21.8]} 32. f4 {[%clk 0:01:21.2]} 32... Kd6 {[%clk 0:02:22.5]} 33. b3 {[%clk
0:01:21.1]} 33... b6 {[%clk 0:02:20.3]} 34. c4 {[%clk 0:01:21.2]} 34... Re8
{[%clk 0:02:20.6]} 35. Ke3 {[%clk 0:01:20.2]} 35... Nf5+ {[%clk 0:02:13.1]} 36.
Kd3 {[%clk 0:01:17.3]} 36... Rf7 {[%clk 0:02:06.7]} 37. a4 {[%clk 0:01:13.2]}
37... a5 {[%clk 0:02:06.9]} 38. Bg2 {[%clk 0:00:43.6]} 38... Ree7 {[%clk
0:01:59.8]} 39. Bh1 {[%clk 0:00:31.4]} 39... Nh6 {[%clk 0:01:51.4]} 40. Bf3
{[%clk 0:00:31.5]} 40... Nf5 {[%clk 0:01:51.1]} 41. Bh1 {[%clk 0:00:32.4]} 41...
Ng7 {[%clk 0:01:50.4]} 42. Bf3 {[%clk 0:00:31.6]} 42... Rf5 {[%clk 0:01:44.1]}
43. Bg4 {[%clk 0:00:31]} 43... Rxe5 {[%clk 0:01:44.9]} 44. fxe5+ {[%clk
0:00:32.4]} 44... Kd7 {[%clk 0:01:45.6]} 45. Rf1 {[%clk 0:00:33.7]} 45... Nf5
{[%clk 0:01:45.8]} 46. Bh3 {[%clk 0:00:35]} 46... Ke8 {[%clk 0:01:44.9]} 47. g4
{[%clk 0:00:35.3]} 47... Nh6 {[%clk 0:01:40.2]} 48. Rf6 {[%clk 0:00:36.2]} 48...
Nf7 {[%clk 0:01:40.9]} 49. Bg2 {[%clk 0:00:36.6]} 49... Nd8 {[%clk 0:01:37.6]}
50. h4 {[%clk 0:00:37.1]} 50... Rg7 {[%clk 0:01:38.4]} 51. g5 {[%clk 0:00:38.1]}
51... Ke7 {[%clk 0:01:39.4]} 52. Bf3 {[%clk 0:00:39]} 52... Rg8 {[%clk
0:01:39.8]} 53. Kc3 {[%clk 0:00:39.9]} 53... Re8 {[%clk 0:01:35.2]} 54. b4
{[%clk 0:00:40.8]} 54... axb4+ {[%clk 0:01:33.7]} 55. Kxb4 {[%clk 0:00:42.7]}
55... dxc4 {[%clk 0:01:34.5]} 56. Kxc4 {[%clk 0:00:44.6]} 56... Nf7 {[%clk
0:01:34.9]} 57. Bxc6 {[%clk 0:00:44.5]} 57... Rc8 {[%clk 0:01:34.8]} 58. Kb5
{[%clk 0:00:45.6]} 58... Nd8 {[%clk 0:01:35.7]} 59. Be4 {[%clk 0:00:45.8]} 59...
Rc1 {[%clk 0:01:35.7]} 60. Kxb6 {[%clk 0:00:44.4]} 60... Rc4 {[%clk 0:01:37]}
61. Kb5 {[%clk 0:00:39.3]} 61... Rxd4 {[%clk 0:01:37.7]} 62. Ba8 {[%clk
0:00:40]} 62... Rxh4 {[%clk 0:01:34.5]} 63. a5 {[%clk 0:00:41.2]} 63... Rh2
{[%clk 0:01:31.9]} 64. Rf1 {[%clk 0:00:40.5]} 64... Rb2+ {[%clk 0:01:32.5]} 65.
Ka6 {[%clk 0:00:41.8]} 65... Re2 {[%clk 0:01:33.5]} 66. Kb6 {[%clk 0:00:40.1]}
66... Rb2+ {[%clk 0:01:34.1]} 67. Ka6 {[%clk 0:00:41.5]} 67... Re2 {[%clk
0:01:34.9]} 68. Rc1 {[%clk 0:00:42.8]} 68... Rxe5 {[%clk 0:01:35.4]} 69. Kb6
{[%clk 0:00:44]} 69... Re2 {[%clk 0:01:33.7]} 70. Rb1 {[%clk 0:00:44.2]} 70...
e5 {[%clk 0:01:29.2]} 71. a6 {[%clk 0:00:45.3]} 71... Ra2 {[%clk 0:01:30.2]} 72.
a7 {[%clk 0:00:46]} 72... Ne6 {[%clk 0:01:30.4]} 73. Bd5 {[%clk 0:00:44.9]}
73... Ra3 {[%clk 0:01:31.3]} 74. a8=Q {[%clk 0:00:30.9]} 74... Rxa8 {[%clk
0:01:31.8]} 75. Bxa8 {[%clk 0:00:32.8]} 75... Nxg5 {[%clk 0:01:33.7]} 76. Kc5
{[%clk 0:00:34.2]} 76... Kf6 {[%clk 0:01:34.5]} 77. Rf1+ {[%clk 0:00:35.2]}
77... Kg7 {[%clk 0:01:33.4]} 78. Kd6 {[%clk 0:00:34.7]} 78... e4 {[%clk
0:01:34.6]} 79. Ke5 {[%clk 0:00:35.7]} 79... e3 {[%clk 0:01:34.6]} 80. Re1
{[%clk 0:00:35.4]} 80... Nf3+ {[%clk 0:01:35.3]} 81. Bxf3 {[%clk 0:00:35.6]} 1-0